Cogmind - Beta 13 X1 @@@ ROGUE MODE // 2023.08.03 @ 23:56:33 Player: Exp. Geonium Core Result: Destroyed by P-60 Hacker with Shock Rifle Performance ------------- Evolutions (0) 0 Regions Visited (3) 600 Robots Destroyed (19) 95 Value Destroyed (375) 375 Prototype IDs (4) 80 Alien Tech Used (0) 0 Bonus (408) 408 TOTAL SCORE: 1558 Bonus ------- Follower Combat Kills 485 Friendly Fire -77 Cogmind --------- Core Integrity 0/250 Matter 300/300 Energy 249/250 System Corruption 11% Temperature Cool (1) Movement Treading (160) Location -8/Recycling Parts ------- > --- POWER (1) -------- Ion Engine > --- PROPULSION (2) --- Aluminum Leg (fused) Treaded Aluminum Exoskeleton > --- UTILITY (2) ------ Armored Scrap Engine > --- WEAPON (2) ------- Shotgun Electro Construct/G > --- INVENTORY (5) ---- Ion Engine Subdweller Power Source Heavy Flail Heavy Flail Shrapnel Trap Peak State ------------ > --- POWER ------------ Ion Engine > --- PROPULSION ------- Aluminum Leg Treaded Aluminum Exoskeleton > --- UTILITY ---------- Armored Scrap Engine > --- WEAPON ----------- Shotgun Electro Construct/G > --- INVENTORY -------- Ion Engine Subdweller Power Source Heavy Flail Heavy Flail Shrapnel Trap [Rating: 25] Favorites ----------- Power Ion Engine Engine Ion Engine Propulsion Aluminum Leg Treads Light Treads Leg Aluminum Leg Wheel Wheel Utility Large Storage Unit Device V3-11A's Pendant Storage Large Storage Unit Processor Targeting Computer Weapon Light Assault Rifle Energy Gun Small Laser Ballistic Gun Light Assault Rifle Build | -11 -10 -10 -8 ------- Run | Jun Mat Sub Rec Slots Evolved . | . . . . Power . | . . . . Propulsion . | . . . . Utility . | . . . . Weapon . | . . . . Parts Attached 22 | . 10 11 1 Power 2 | . 1 1 . Engine 2 | . 1 1 . Core . | . . . . Reactor . | . . . . Propulsion 9 | . 4 5 . Treads 2 | . 2 . . Leg 5 | . 2 3 . Wheel 2 | . . 2 . Hover . | . . . . Flight . | . . . . Utility 8 | . 3 4 1 Device 4 | . . 3 1 Storage 3 | . 2 1 . Processor 1 | . 1 . . Hackware . | . . . . Protection . | . . . . Artifact . | . . . . Weapon 3 | . 2 1 . Energy Gun . | . . . . Energy Cannon . | . . . . Ballistic Gun 3 | . 2 1 . Ballistic Cannon . | . . . . Launcher . | . . . . Special Weapon . | . . . . Impact Weapon . | . . . . Slashing Weapon . | . . . . Piercing Weapon . | . . . . Special Melee Weapon . | . . . . Unidentified Prototypes 2 | . . 2 . Parts Lost 7 | . 4 3 . Power 2 | . 1 1 . Propulsion 1 | . 1 . . Utility 1 | . . 1 . Weapon 3 | . 2 1 . Highest Loss Streak 2 | . 1 2 . To Critical Strikes . | . . . . Average Slot Usage (%) 96 | . 98 97 81 Engine 13 | . 13 13 14 Treads 3 | . 14 . 1 Leg 24 | . 13 27 25 Device 7 | . . 9 5 Storage 15 | . 14 17 9 Processor 3 | . 13 1 . Ballistic Gun 25 | . 23 26 24 Naked Turns . | . . . . Heaviest Build 34 | 12 28 34 31 Greatest Support 40 | 20 40 26 20 Greatest Overweight (x) 2 | . 1 2 1 Average Overweight (x) . | . . 1 . Largest Inventory Capacity 15 | . 15 15 15 Average Capacity 14 | . 13 15 11 Most Carried 12 | . 11 10 12 Average Carried 7 | . 7 7 8 Final Capacity 15 | 8 15 15 5 Final Carried 10 | 6 10 8 5 Scrap Engine Consumption 20 | . . . 20 Constructs Created 2 | . . . 2 Class Distribution -------------------- 61% | Scavenger-Mutant 37% | Mutant Dominant Class ---------------- Mutant | -10/Materials Scavenger-Mutant | -10/Subcaves Scavenger-Mutant | -8/Recycling Resources | -11 -10 -10 -8 ----------- Run | Jun Mat Sub Rec Matter Collected 856 | 164 205 370 117 Remotely . | . . . . Salvage Created 721 | . 471 21 229 Parts 39 | . 30 2 7 Haulers Intercepted . | . . . . Recyclers Shooed 7 | . 2 . 5 Parts Field Recycled . | . . . . Retrieved Matter . | . . . . Parts Self-Destructed 14 | . . 14 . Prevented . | . . . . Kills | -11 -10 -10 -8 ------- Run | Jun Mat Sub Rec Combat Hostiles Destroyed 14 | . 13 1 . Guns 14 | . 13 1 . Classes Destroyed 4 | . 3 1 . Recycler 4 | . 1 . 3 Turret 1 | . . 1 . Swarmer 7 | . 6 1 . Grunt 7 | . 7 . . Best Kill Streak 6 | . 6 2 2 Combat Bots Only 6 | . 6 1 . Max Kills in Single Turn 1 | . 1 1 1 Gunslinging . | . . . . Exploded . | . . . . Melee . | . . . . Uniques/NPCs Destroyed . | . . . . Combat | -11 -10 -10 -8 -------- Run | Jun Mat Sub Rec Damage Taken 1152 | . 833 305 14 Core 254 | . 148 92 14 Absorbed by Shields . | . . . . Core Remaining (%) 100 | 100 . . . Volleys Fired 110 | . 61 39 10 Largest 2 | . 2 2 2 Hottest 60 | . 60 50 50 Shots Fired 184 | . 108 54 22 Gun 184 | . 108 54 22 Cannon . | . . . . Launcher . | . . . . Special . | . . . . Kinetic 160 | . 84 54 22 Thermal 24 | . 24 . . Explosive . | . . . . Electromagnetic . | . . . . Robot Hit Streak 13 | . 13 3 4 Robot Miss Streak 4 | . 4 3 2 Penetration Max . | . . . . Secondary Targets 4 | . 4 . . Max Gunslinging Chain 1 | . 1 . . Shots Hit Robots 99 | . 74 10 15 Core Hits 38 | . 29 3 6 Critical Kills 2 | . 1 . 1 Critical Parts Destroyed . | . . . . Critical Strikes 2 | . 1 . 1 Destroy 2 | . 1 . 1 Melee Attacks . | . . . . Impact . | . . . . Slashing . | . . . . Piercing . | . . . . Sneak Attacks . | . . . . Combat Hostiles . | . . . . Follow-up Attacks . | . . . . Damage Inflicted 1296 | . 752 314 230 Guns 1145 | . 735 185 225 Cannons . | . . . . Explosions . | . . . . Melee . | . . . . Ramming 151 | . 17 129 5 Kinetic 969 | . 559 185 225 Thermal 176 | . 176 . . Explosive . | . . . . Electromagnetic . | . . . . Impact . | . . . . Slashing . | . . . . Piercing . | . . . . Highest Corruption 11 | . . 11 11 Average Corruption 10 | . . 10 11 Corruption Purged . | . . . . Corruption Blocked . | . . . . Effects 159 | . . 146 13 Message Errors 37 | . . 34 3 Matter Fused 32 | . . 30 2 Heat Flow Errors 17 | . . 15 2 Energy Discharges 23 | . . 21 2 Parts Rejected 1 | . . 1 . Parts Fused 1 | . . 1 . Data Loss (minor) 23 | . . 22 1 Data Loss (major) 8 | . . 8 . Misfires 7 | . . 5 2 Alerts 7 | . . 7 . Misdirections 1 | . . . 1 Weapon Failures 2 | . . 2 . Overload Shots . | . . . . Overflow Damage . | . . . . Projectiles . | . . . . Explosions . | . . . . Melee . | . . . . Knockbacks . | . . . . Impact . | . . . . Kinetic . | . . . . Secondary . | . . . . Self-Inflicted Damage 129 | . . 129 . Shots . | . . . . Rammed 2 | . 2 . . Targets Rammed 7 | . 4 . 3 Kicked 5 | . 2 . 3 Crushed . | . . . . Highest Temperature 240 | . 171 240 155 Average Temperature 76 | . 76 95 41 Received Heat Transfer 420 | . 360 60 . Siege Activations . | . . . . Robots Corrupted . | . . . . Combat Hostiles . | . . . . Parts Fried . | . . . . Impact Corruptions . | . . . . Robots Melted . | . . . . Combat Hostiles . | . . . . Parts Melted . | . . . . Heat Transferred 400 | . 400 . . Parts Sabotaged . | . . . . Parts Stolen . | . . . . Parts Stripped . | . . . . Power Chain Reactions . | . . . . Missiles Intercepted . | . . . . Alert | -11 -10 -10 -8 ------- Run | Jun Mat Sub Rec Peak Influence 517 | . 190 . 517 Initial 258 | . . . 258 Average 159 | . 93 . 370 Maximum Alert Level 2 | . . . 2 Low Security (%) 75 | . 100 . . Level 1 16 | . . . 68 Level 2 7 | . . . 31 Level 3 . | . . . . Level 4 . | . . . . Level 5 . | . . . . High Security . | . . . . Max Security . | . . . . Squads Dispatched 4 | . 4 . . Investigation 1 | . 1 . . Extermination . | . . . . Reinforcement 3 | . 3 . . Assault . | . . . . Garrison . | . . . . Intercept . | . . . . Searches Triggered . | . . . . Construction Impeded . | . . . . Haulers Reinforced . | . . . . Active Scanning Responses . | . . . . Cargo Convoy Interrupts . | . . . . Stealth | -11 -10 -10 -8 --------- Run | Jun Mat Sub Rec Distress Signals 2 | . 2 . . Communications Jammed . | . . . . Distress Signals . | . . . . Times Spotted 74 | . 26 45 3 Peak Tracking Total 5 | . 5 3 1 Tactical Retreats 3 | . 1 2 . Traps | -11 -10 -10 -8 ------- Run | Jun Mat Sub Rec Traps Triggered 1 | . 1 . . Indirectly . | . . . . Trap Hack Attempts . | . . . . Triggered . | . . . . Disarmed . | . . . . Reprogrammed . | . . . . Reused . | . . . . Traps Extracted . | . . . . Installed . | . . . . Triggered 1 | . . 1 . Most Traps Carried 1 | . . 1 1 Machines | -11 -10 -10 -8 ---------- Run | Jun Mat Sub Rec Machines Disabled 1 | . . 1 . Max in Single Turn . | . . . . Machines Repaired . | . . . . Machines Sabotaged . | . . . . Overloaded Fab Kills . | . . . . Hacking | -11 -10 -10 -8 --------- Run | Jun Mat Sub Rec Machines Accessed 1 | . . 1 . Terminals . | . . . . Fabricators . | . . . . Repair Stations . | . . . . Recycling Units . | . . . . Scanalyzers . | . . . . Garrison Access . | . . . . Total Hacks 1 | . . 1 . Successful 1 | . . 1 . Failed . | . . . . Catastrophic . | . . . . Database Lockouts . | . . . . Manual . | . . . . Terminals . | . . . . Fabricators . | . . . . Repair Stations . | . . . . Recycling Units . | . . . . Scanalyzers . | . . . . Garrison Access . | . . . . Terminal Hacks 1 | . . 1 . Record 1 | . . 1 . Fabricator Hacks . | . . . . Repair Station Hacks . | . . . . Recycling Unit Hacks . | . . . . Scanalyzer . | . . . . Garrison Access Hacks . | . . . . Unauthorized Hacks . | . . . . Terminals . | . . . . Fabricators . | . . . . Repair Stations . | . . . . Recycling Units . | . . . . Scanalyzers . | . . . . Garrison Access . | . . . . Data Cores Recovered . | . . . . Used . | . . . . Hacking Detections . | . . . . Full Trace Events . | . . . . Feedback Events . | . . . . Feedback Blocked . | . . . . Robot Schematics Acquired . | . . . . Robots Built . | . . . . Authchips . | . . . . Time . | . . . . Total Robot Build Rating . | . . . . Part Schematics Acquired . | . . . . Parts Built . | . . . . Authchips . | . . . . Time . | . . . . Total Part Build Rating . | . . . . Parts Repaired . | . . . . Time . | . . . . Parts Recycled . | . . . . Recycled Matter . | . . . . Retrieved Matter . | . . . . Retrieved Components . | . . . . Parts Scanalyzed . | . . . . Part Schematics Acquired . | . . . . Parts Damaged . | . . . . Bothacking | -11 -10 -10 -8 ------------ Run | Jun Mat Sub Rec Used RIF Installer . | . . . . Robots Hacked . | . . . . Non-combat . | . . . . Combat . | . . . . Robot Hacks Applied . | . . . . Relay Couplers Released . | . . . . Fabnet Peak Effective % . | . . . . Robots Rewired . | . . . . Allies Hacked . | . . . . Hacks Repelled . | . . . . Allies | -11 -10 -10 -8 -------- Run | Jun Mat Sub Rec Total Allies 12 | . . 12 . Largest Group 7 | . . 7 7 Highest-Rated Group 133 | . . 133 133 Highest-Rated Ally 19 | . . 19 19 Total Orders . | . . . . Ally Attacks 96 | . . 56 40 Total Damage 1542 | . . 737 805 Kills 20 | . . 9 11 Allies Corrupted . | . . . . Allies Melted . | . . . . Intel | -11 -10 -10 -8 ------- Run | Jun Mat Sub Rec Robot Analysis Total . | . . . . Derelict Logs Recovered 1 | . . 1 . Drone Launches . | . . . . Drone Recoveries . | . . . . Exploration | -11 -10 -10 -8 ------------- Run | Jun Mat Sub Rec Turns Passed 5989 | . 1335 4231 423 Spaces Moved 2858 | 1 445 2205 207 Core . | . . . . Treads 272 | . 246 . 26 Legs 2478 | 1 199 2097 181 Wheels 108 | . . 108 . Hover . | . . . . Flight . | . . . . Fastest Speed 90 | 120 120 90 120 Average Speed 181 | 120 165 185 170 Slowest Speed 240 | 120 240 190 190 Overloaded Moves . | . . . . Propulsion Burnouts . | . . . . Robots Hopped . | . . . . Cave-ins Triggered . | . . . . Exploration Rate (%) 53 | 2 73 95 45 Regions Visited 3 Branch Regions 2 Pre-discovered Areas 1 | . . 1 . Known Exits Taken . | . . . . Unknown Exits Taken 3 | 1 1 1 . Scrap Searched 5 | . . 5 . Spaces Dug . | . . . . Terrain Destroyed 1 | . . . 1 Melee . | . . . . Projectile 1 | . . . 1 AOE . | . . . . Terrain Rammed 6 | . . 6 . Walls Destroyed 4 | . . 4 . Machines Disabled . | . . . . Actions | -11 -10 -10 -8 --------- Run | Jun Mat Sub Rec Total 3497 | . 945 2290 262 Wait 467 | . 416 22 29 Move 2855 | . 444 2204 207 Hop . | . . . . Pick Up 16 | . 7 3 6 Fast Attach 6 | . 2 4 . Attach 10 | . 4 5 1 Detach 1 | . 1 . . Swap 6 | . 4 2 . Drop 13 | . 2 5 6 Fire 110 | . 61 39 10 Melee . | . . . . Ram 6 | . . 6 . Kick 5 | . 2 . 3 Crush 2 | . 2 . . Escape Stasis . | . . . . Rewire . | . . . . Trap . | . . . . Miscellaneous . | . . . . Route ------- -11/Junkyard -10/Materials (discovered 4 exits: [*Mat x2] / [*Min] / *Sub) -10/Subcaves (discovered 3 exits: [*Mat x2] / [*Rec]) -8/Recycling (discovered 1 exit: [*Fac]) History --------- Turn | Location | Event 1 | -11/Junkyard | Discovered new exit (range 0) 1 | -11/Junkyard | Entered Materials 46 | -10/Materials | Discovered new exit (range 9) 76 | -10/Materials | Discovered new exit (range 14) 315 | -10/Materials | Build established: Mutant 319 | -10/Materials | Discovered new exit (range 10) 951 | -10/Materials | Core integrity fell below 50% 1301 | -10/Materials | Discovered new exit (range 9) 1336 | -10/Materials | Entered Subcaves 1409 | -10/Subcaves | Learned location of Zion (-7) 1586 | -10/Subcaves | A swath of the cavern ceiling suddenly collapsed 1770 | -10/Subcaves | System corruption reached 10% 2509 | -10/Subcaves | Build established: Scavenger-Mutant 2588 | -10/Subcaves | Visited triangular shrine 2600 | -10/Subcaves | Found Prototype Device 2600 | -10/Subcaves | Identified V3-11A's Pendant 2605 | -10/Subcaves | Befriended Subdweller 2805 | -10/Subcaves | A Subdweller sparked back to life 2805 | -10/Subcaves | A Subdweller sparked back to life 2805 | -10/Subcaves | A Subdweller sparked back to life 2809 | -10/Subcaves | Core integrity fell below 20% 2810 | -10/Subcaves | Befriended Subdweller 2822 | -10/Subcaves | Found Prototype Device 2822 | -10/Subcaves | Identified Power Bank 2823 | -10/Subcaves | Attached Power Bank, gained temporary slots: Power x3 2846 | -10/Subcaves | Befriended Subdweller 2892 | -10/Subcaves | Discovered new exit (range 3) 3001 | -10/Subcaves | Befriended Subdweller 3001 | -10/Subcaves | Befriended Subdweller 3151 | -10/Subcaves | Befriended Subdweller 3707 | -10/Subcaves | Shifting Twisted Machinery released Sub. Machine Gun 3730 | -10/Subcaves | Shifting Twisted Machinery released Sub. Power Source 3761 | -10/Subcaves | A swath of the cavern ceiling suddenly collapsed 3916 | -10/Subcaves | Visited Clippyterm 3980 | -10/Subcaves | Discovered new exit (range 13) 4231 | -10/Subcaves | Befriended Subdweller 4231 | -10/Subcaves | Befriended Subdweller 4239 | -10/Subcaves | Discovered new exit (range 10) 4331 | -10/Subcaves | Befriended Subdweller 4331 | -10/Subcaves | Befriended Subdweller 4461 | -10/Subcaves | Befriended Subdweller 4471 | -10/Subcaves | Befriended Subdweller 5567 | -10/Subcaves | Entered Recycling 5567 | -8/Recycling | Accompanied by 7 allies 5572 | -8/Recycling | Found Scrap Engine 5806 | -8/Recycling | Discovered new exit (range 15) 5990 | -8/Recycling | Destroyed by P-60 Hacker with Shock Rifle Last Messages --------------- 05898_ Scrap Engine consumes Aluminum Leg. 05899_ Scrap Engine consumes Broken Deuterium Engine. 05900_ System corrupted: Component data lost. 05901_ Scrap Engine consumes Imp. Aluminum Leg. 05901_ R-06 Scavenger collects Imp. Aluminum Leg. 05903_ Scrap Engine consumes Core Shielding. 05904_ Scrap Engine consumes EM Shotgun. 05909_ Scrap Engine consumes Imp. Aluminum Leg. 05910_ Kicked R-06 Scavenger. 05913_ Dropped Aluminum Leg. 05916_ R-06 Scavenger collects Aluminum Leg. 05939_ Scrap Engine envelopes itself in armor. 05948_ Arm. Scrap Engine constructs Treaded Aluminum Exoskeleton. 05948_ Dropped Sub. Machine Gun. 05948_ Dropped Lgt. Assault Rifle. 05950_ Arm. Scrap Engine consumes Sub. Machine Gun. 05951_ Arm. Scrap Engine consumes Lgt. Assault Rifle. 05961_ System corrupted: Energy discharge (-67). 05981_ Arm. Scrap Engine constructs Shotgun Electro Construct/G. 05990_ P-60 Hacker springs to life. Map ----- +----------------------------------------------------+ | ?#+##+##??????????????????????????????? | | ?? #??????????????????????????????? | | ?? +??????????????????????????????? | | ??? #??????????????????????????????? | | ???# #??????????????????????????????? | | ???# #??????????????????????????????? | | #### #??????????????????????????????? | | # #??????????????????????????????? | | # #####??????????????????????????? | | " + #%%%#??????????????????????????? | | "" # #%% ###### ????????????????? | | " # ????????????????? | | "" / ????????????????? | | "" # = ????????????????? | | "" ### ####%##### ????????????????? | | "" #?# #????#?????????????????????????? | | "" #?# #??????????????????????????????? | | " #?#+###########?#############??????? | | #?# #?# h!ts #??????? | | #?# #?#a k Ypr g#??????? | | ####?# """ """ #?# ur | d#??????? | | ?????# """ """ #?# % a g#??????? | | ?????# """ """ #?# a pk #??????? | | ?????# #??? /%] ????????? | | ?????# #????? ! ??????????? | | ###############+#########@######??????? | | #??????? | | R < #??????? | | R #??????? | | ############/############+######??????? | | ???# ! #???????????????????? | | ???# % ! % #???????????????????? | | ???# % % % #???????????????????? | | ???# #???????????????????? | | ???# % ]#???????????????????? | | ???# % %! #???????????????????? | | ???#! % = #???????????????????? | | ???# % #???????????????????? | | ???# #???????????????????? | | ???# % #???????????????????? | | ???################???????????????????? | | ??????????????????????????????????????? | | ??????????????????????????????????????? | | | | | | | | | | | | | | | +----------------------------------------------------+ Best States ------------- Heat Dissipation 25 Energy Generation 10 Energy Capacity 500 Matter Stores 300 Matter Capacity 300 Sight Range 16 Terrain Scan Density 10 Evasion (%) 55 Targeting Accuracy 5 Recoil Reduction 2 Item Schematics ----------------- None Robot Schematics ------------------ None Fabricated ------------ Nothing Alien Tech Used ----------------- None Achievements -------------- None Challenges ------------ None Game ------ Seed NullAdvancedPerforator Manual? 0 Play Time 00:23:17 Cumulative 444.2 hours Start 2023.08.03 @ 23:35:40 End 2023.08.03 @ 23:56:33 Sessions 1 Manual Loads 0 Difficulty Rogue Special Mode None Game No. 495 Rogue 495 Adventurer 0 Explorer 0 Win Type - Total 12 Types 8/0/3/1/0/0/0/0/0 Lore% 80 Gallery% 89 Achievement% 80 Wizard Run 0 Options --------- ASCII 0 Keyboard 0 Movement Numpad Keybinds 0 Fullscreen 1 Font 18/Terminus Map View 76x50 Tactical HUD 1 Map Filters NONE Filters NONE Steam 1 RUN: 47b0af16-7b8b-430c-8798-f0e108963756